bitfinex-derivatives/quotes_BTCF0:USTF0_20250509
["timestamp","ask_amount","ask_price","bid_price","bid_amount"]
[1746781141468,1.13772385,103000.0,102990.0,0.42511725]
[1746781141652,1.13772385,103000.0,102990.0,0.43623195]
[1746781141962,1.13772385,103000.0,102990.0,0.72750794]
[1746781142157,1.13772385,103000.0,102990.0,0.53332404]
[1746781142462,1.13772385,103000.0,102990.0,0.31160794]
[1746781142663,1.25859415,103000.0,102990.0,0.31160794]
[1746781143062,1.25859415,103000.0,102990.0,0.11742404]
[1746781143369,1.13772385,103000.0,102990.0,0.30860794]
[1746781143656,0.58275885,103000.0,102990.0,0.79027824]
[1746781143858,0.58275885,103000.0,102990.0,1.20227824]
[1746781145258,0.58275885,103000.0,102990.0,1.19927824]
[1746781145564,0.26095885,103000.0,102990.0,1.19954778]
[1746781145758,0.26095885,103000.0,102990.0,1.21430278]
[1746781145958,0.26095885,103000.0,102990.0,1.37560278]
[1746781146160,0.08955885,103000.0,102990.0,1.59647308]
[1746781146462,0.08955885,103000.0,102990.0,1.61356508]
[1746781146664,0.08955885,103000.0,102990.0,1.97356508]
[1746781146965,0.08470243,103000.0,102990.0,2.14356508]
[1746781147165,0.00342,103010.0,103000.0,0.194165]
[1746781147366,0.00242,103010.0,103000.0,1.45441954]
[1746781147663,0.17,103020.0,103010.0,0.2941461]
[1746781147965,0.17,103020.0,103010.0,1.38440064]
[1746781148164,0.17,103020.0,103010.0,1.26353034]
[1746781148367,0.17,103020.0,103010.0,1.4814833]
[1746781148776,0.171,103020.0,103010.0,1.360613]
[1746781149079,0.171,103020.0,103010.0,1.6484833]
[1746781149268,0.3368,103020.0,103010.0,1.6484833]
[1746781149575,0.3368,103020.0,103010.0,1.5484833]
[1746781149775,0.3368,103020.0,103010.0,1.5494833]
[1746781150175,0.3368,103020.0,103010.0,1.428613]
[1746781150375,0.3368,103020.0,103010.0,1.6494833]
[1746781150570,0.3368,103020.0,103010.0,1.5464833]
[1746781150764,0.3358,103020.0,103010.0,1.54747983]
[1746781150968,0.3358,103020.0,103010.0,1.64747983]
[1746781151170,0.3358,103020.0,103010.0,2.06337983]
[1746781151671,0.5299273,103020.0,103010.0,1.84556256]
[1746781151975,0.5299273,103020.0,103010.0,1.67626256]
[1746781152277,0.7012273,103020.0,103010.0,1.51556256]
[1746781152477,0.7012273,103020.0,103010.0,1.51256256]
[1746781152679,0.7012273,103020.0,103010.0,1.34534549]
[1746781152973,0.5071,103020.0,103010.0,1.34534549]
[1746781153278,0.5071,103020.0,103010.0,1.80681579]
[1746781153984,0.5071,103020.0,103010.0,1.98001579]
[1746781154171,0.5071,103020.0,103010.0,1.85914549]
[1746781154375,0.3358,103020.0,103010.0,1.97701579]
[1746781154572,0.17,103020.0,103010.0,1.85614549]
[1746781155084,0.17,103020.0,103010.0,1.97701579]
[1746781155976,0.17,103020.0,103010.0,1.85314549]
[1746781156379,0.17,103020.0,103010.0,1.97401579]
[1746781156588,0.3316,103020.0,103010.0,1.97401579]
[1746781157980,0.3316,103020.0,103010.0,1.97401471]
[1746781158189,0.3316,103020.0,103010.0,1.97101471]
[1746781158389,0.5257273,103020.0,103010.0,1.50644441]
[1746781158585,0.4933,103020.0,103010.0,1.50644441]
[1746781158790,0.4933,103020.0,103010.0,1.62731471]
[1746781158980,0.17,103020.0,103010.0,1.80151484]
[1746781159486,0.16782,103030.0,103020.0,0.1941273]
[1746781159681,0.34142,103030.0,103020.0,1.11131338]
[1746781159881,0.34142,103030.0,103020.0,1.10831252]
[1746781160089,0.34142,103030.0,103020.0,1.09914849]
[1746781160283,0.34142,103030.0,103020.0,1.11396247]
[1746781161090,0.34142,103030.0,103020.0,1.09914849]
[1746781161385,0.5355285,103030.0,103020.0,1.10014849]
[1746781161581,0.5355285,103030.0,103020.0,0.92594849]
[1746781161986,0.5355285,103030.0,103020.0,0.92294849]
[1746781162193,0.5355285,103030.0,103020.0,0.56214849]
[1746781162394,0.34142,103030.0,103020.0,1.21471879]
[1746781162690,0.17602,103030.0,103020.0,1.30571879]
[1746781162993,0.00242,103030.0,103020.0,1.30571879]
[1746781163189,0.00242,103030.0,103020.0,1.72161879]
[1746781163385,0.00242,103030.0,103020.0,1.61592104]
[1746781163586,0.3610285,103030.0,103020.0,1.73379134]
[1746781163889,0.34002,103030.0,103020.0,1.61292104]
[1746781165091,0.34002,103030.0,103020.0,1.73379134]
[1746781165496,0.34002,103030.0,103020.0,1.73079134]
[1746781166089,0.34002,103030.0,103020.0,1.60992104]
[1746781166294,0.34002,103030.0,103020.0,1.73079134]
[1746781166490,0.5341285,103030.0,103020.0,1.73079134]
[1746781166698,0.8148988,103030.0,103020.0,0.73919374]
[1746781166890,0.6940285,103030.0,103020.0,0.68455128]
[1746781167199,0.69120619,103030.0,103020.0,0.57455128]
[1746781167495,0.69120619,103030.0,103020.0,0.76867858]
[1746781168204,0.69120619,103030.0,103020.0,1.12947858]
[1746781168390,0.69120619,103030.0,103020.0,0.76867858]
[1746781168790,0.69120619,103030.0,103020.0,0.79868024]
[1746781168987,0.69120619,103030.0,103020.0,0.79568024]
[1746781169294,0.69120619,103030.0,103020.0,0.37978024]
[1746781169495,1.17287649,103030.0,103020.0,0.12561804]
[1746781169687,1.17287649,103030.0,103020.0,0.02855423]
[1746781170089,1.17287649,103030.0,103020.0,0.01338168]
[1746781170291,1.51994049,103030.0,103020.0,0.01338168]
[1746781170492,1.51994049,103030.0,103020.0,0.002]
[1746781170692,1.26994049,103030.0,103020.0,0.01309261]
[1746781171096,1.26711911,103030.0,103020.0,0.20721991]
[1746781171293,1.17005511,103030.0,103020.0,0.20721991]
[1746781171597,1.17205511,103030.0,103020.0,0.20621991]
[1746781171993,1.17405511,103030.0,103020.0,0.20521991]
[1746781172197,1.05318481,103030.0,103020.0,0.30228372]
[1746781172494,0.69238481,103030.0,103020.0,0.30228372]
[1746781172890,0.69338481,103030.0,103020.0,0.29928372]
[1746781173092,0.87953705,103030.0,103020.0,0.29119111]
[1746781173288,1.24033705,103030.0,103020.0,0.29119111]
[1746781173489,1.00040735,103030.0,103020.0,0.29119111]
[1746781174694,0.8767166,103030.0,103020.0,0.29119111]
[1746781174899,1.3583869,103030.0,103020.0,0.29119111]
[1746781175201,0.8767166,103030.0,103020.0,0.29119111]
[1746781175693,0.9975869,103030.0,103020.0,0.29119111]
[1746781175998,1.3583869,103030.0,103020.0,0.29119111]
[1746781176187,1.3583869,103030.0,103020.0,0.09706381]
[1746781176392,1.3583869,103030.0,103020.0,0.29119111]
[1746781176592,1.21369563,103030.0,103020.0,0.29119111]
[1746781176792,1.33456593,103030.0,103020.0,0.29119111]
[1746781177201,1.33456593,103030.0,103020.0,0.28819111]
[1746781178195,1.33456593,103030.0,103020.0,0.09406381]
[1746781178401,1.33456593,103030.0,103020.0,0.28819111]
[1746781178602,1.21369563,103030.0,103020.0,0.28819111]
[1746781178896,0.85007611,103030.0,103020.0,0.28819111]
[1746781179100,0.85007611,103030.0,103020.0,0.62919111]
[1746781179295,0.85007611,103030.0,103020.0,0.98999111]
[1746781179603,0.51707611,103030.0,103020.0,1.16086141]
[1746781180299,0.51407611,103030.0,103020.0,1.16086141]
[1746781180492,0.51507611,103030.0,103020.0,1.03699111]
[1746781180895,0.32096761,103030.0,103020.0,1.45289111]
[1746781181097,0.16533127,103030.0,103020.0,1.57376141]
[1746781181304,0.16533127,103030.0,103020.0,1.69376141]
[1746781181504,0.16533127,103030.0,103020.0,1.81463171]
[1746781181695,0.16333127,103030.0,103020.0,1.81463171]
[1746781181898,0.16333127,103030.0,103020.0,1.81563171]
[1746781182098,0.16333127,103030.0,103020.0,1.57389111]
[1746781182402,0.15951267,103030.0,103020.0,1.69676141]
[1746781182604,0.15951267,103030.0,103020.0,1.69979591]
[1746781183197,0.15951267,103030.0,103020.0,1.57892561]
[1746781183397,0.15951267,103030.0,103020.0,1.69979591]
[1746781183904,0.15951267,103030.0,103020.0,1.69676141]
[1746781184099,0.15951267,103030.0,103020.0,1.57589111]
[1746781184307,0.5782327,103040.0,103030.0,0.1941085]
[1746781184508,0.5782327,103040.0,103030.0,1.3484085]
[1746781184804,0.5782327,103040.0,103030.0,1.48336845]
[1746781184997,0.5782327,103040.0,103030.0,1.36249815]
[1746781185199,0.5782327,103040.0,103030.0,1.45956196]
[1746781185398,0.5792327,103040.0,103030.0,1.45956196]
[1746781185604,0.5792327,103040.0,103030.0,1.45956211]
[1746781186207,0.5792327,103040.0,103030.0,1.45352749]
[1746781186610,0.5792327,103040.0,103030.0,1.4565621]
[1746781186806,0.5792327,103040.0,103030.0,1.45670351]
[1746781187308,0.700103,103040.0,103030.0,1.45670351]
[1746781187710,0.5792327,103040.0,103030.0,1.4536689]
[1746781187899,0.57641503,103040.0,103030.0,1.4536689]
[1746781188412,0.81948533,103040.0,103030.0,1.4536689]
[1746781188607,0.81948533,103040.0,103030.0,1.2864689]
[1746781188802,0.81948533,103040.0,103030.0,0.9349604]
[1746781189000,0.69861503,103040.0,103030.0,0.7682689]
[1746781189205,0.69861503,103040.0,103030.0,0.7182689]
[1746781189514,1.18028533,103040.0,103030.0,0.8852689]
[1746781189713,0.69861503,103040.0,103030.0,0.8822689]
[1746781189909,1.18028533,103040.0,103030.0,0.8822689]
[1746781190102,0.69861503,103040.0,103030.0,1.0502689]
[1746781190307,0.69861503,103040.0,103030.0,0.6373689]
[1746781190500,0.69861503,103040.0,103030.0,0.9981689]
[1746781190703,0.69861503,103040.0,103030.0,0.6373689]
[1746781191015,0.69861503,103040.0,103030.0,0.9981689]
[1746781191412,0.69579829,103040.0,103030.0,0.9981689]
[1746781191610,0.84181926,103040.0,103030.0,0.9981689]
[1746781192207,0.84181926,103040.0,103030.0,0.98697231]
[1746781192409,0.84181926,103040.0,103030.0,0.99816247]
[1746781192714,0.84181926,103040.0,103030.0,1.00119718]
[1746781192917,0.42812097,103040.0,103030.0,1.15206748]
[1746781193116,0.42812097,103040.0,103030.0,1.30496748]
[1746781193302,0.42812097,103040.0,103030.0,1.31994065]
[1746781193507,0.62221057,103040.0,103030.0,1.19907035]
[1746781194209,0.78901057,103040.0,103030.0,1.19907035]
[1746781194403,0.5207896,103040.0,103030.0,1.19907035]
[1746781194607,0.5207896,103040.0,103030.0,1.19603564]
[1746781194808,0.32388418,103040.0,103030.0,1.18106247]
[1746781195009,0.51797378,103040.0,103030.0,1.18106247]
[1746781195916,0.51797378,103040.0,103030.0,1.1806793]
[1746781196309,0.51797378,103040.0,103030.0,1.58277231]
[1746781197809,0.51797378,103040.0,103030.0,1.57977231]
[1746781198412,0.70411316,103040.0,103030.0,1.57977231]
[1746781198822,1.18578346,103040.0,103030.0,0.09106381]
[1746781199013,0.82498346,103040.0,103030.0,0.09106381]
[1746781199214,0.70411316,103040.0,103030.0,0.28517231]
[1746781199814,0.82498346,103040.0,103030.0,0.60697231]
[1746781200015,0.70411316,103040.0,103030.0,0.60697231]
[1746781200523,0.82498346,103040.0,103030.0,0.45017231]
[1746781201421,0.70129827,103040.0,103030.0,0.45017231]
[1746781201619,0.82216857,103040.0,103030.0,0.45017231]
[1746781202720,0.70129827,103040.0,103030.0,0.45017231]
[1746781203018,0.6761476,103040.0,103030.0,0.27681517]
[1746781203209,0.6761476,103040.0,103030.0,0.37386956]
[1746781203412,0.67333363,103040.0,103030.0,0.37386956]
[1746781203609,0.55246333,103040.0,103030.0,0.37386956]
[1746781204008,0.67333363,103040.0,103030.0,0.53066956]
[1746781204721,0.55246333,103040.0,103030.0,0.53066956]
[1746781204917,0.19157373,103040.0,103030.0,1.01233986]
[1746781205623,0.04111841,103040.0,103030.0,1.68436956]
[1746781205827,0.04111841,103040.0,103030.0,1.55136956]
[1746781206025,0.04111841,103040.0,103030.0,1.69136956]
[1746781206224,0.04111841,103040.0,103030.0,3.05136956]
[1746781206517,0.23520801,103040.0,103030.0,1.55136956]
[1746781207022,0.04111841,103040.0,103030.0,1.67223986]
[1746781207814,0.03830536,103040.0,103030.0,1.67223986]
[1746781209121,0.03830536,103040.0,103030.0,1.55136956]
[1746781209418,0.03830536,103040.0,103030.0,1.67223986]
[1746781209921,0.03549324,103040.0,103030.0,1.55136956]
[1746781210128,0.03549324,103040.0,103030.0,1.67223986]
[1746781210716,0.20729324,103040.0,103030.0,1.66223986]
[1746781211022,0.20729324,103040.0,103030.0,2.02303986]
[1746781211327,0.26961351,103040.0,103030.0,2.13303986]
[1746781211815,0.26961351,103040.0,103030.0,2.13003986]
[1746781212017,0.09781351,103040.0,103030.0,2.13003986]
[1746781212519,0.09781351,103040.0,103030.0,3.50916956]
[1746781212712,0.46370311,103040.0,103030.0,3.34916956]
[1746781212917,0.26961351,103040.0,103030.0,3.39916956]
[1746781213113,0.26961351,103040.0,103030.0,3.52003986]
[1746781213721,0.26680231,103040.0,103030.0,3.52003986]
[1746781214026,0.26680231,103040.0,103030.0,3.39916956]
[1746781214228,0.26680231,103040.0,103030.0,3.52003986]
[1746781214716,0.26680231,103040.0,103030.0,3.39916956]
[1746781214920,0.26680231,103040.0,103030.0,3.52003986]
[1746781215124,0.26680231,103040.0,103030.0,3.39916956]
[1746781215628,0.26680231,103040.0,103030.0,3.51703986]
[1746781216426,0.09500231,103040.0,103030.0,3.51703986]
[1746781216825,0.09500231,103040.0,103030.0,3.39616956]
[1746781217026,0.09500231,103040.0,103030.0,3.51703986]
[1746781217230,0.09500231,103040.0,103030.0,3.39616956]
[1746781217424,0.09500231,103040.0,103030.0,3.51703986]
[1746781217625,0.09500231,103040.0,103030.0,3.39616956]
[1746781217930,0.09500231,103040.0,103030.0,3.51703986]
[1746781218523,0.24959203,103040.0,103030.0,3.39616956]
[1746781218724,0.24959203,103040.0,103030.0,3.51703986]
[1746781219227,0.09219203,103040.0,103030.0,3.65703986]
[1746781219937,0.09219203,103040.0,103030.0,3.53616956]
[1746781220136,0.09219203,103040.0,103030.0,3.65703986]
[1746781220429,0.09219203,103040.0,103030.0,3.53316956]
[1746781220633,0.09219203,103040.0,103030.0,3.65403986]
[1746781220928,0.56945193,103040.0,103030.0,0.50995439]
[1746781221136,0.90475193,103040.0,103030.0,0.50995439]
[1746781221332,0.90475193,103040.0,103030.0,0.09705439]
[1746781221734,1.25180793,103040.0,103030.0,0.09705439]
[1746781221924,0.1941273,103020.0,103010.0,1.104]
[1746781222235,0.1941273,103020.0,103010.0,1.1688461]
[1746781222438,0.3654273,103020.0,103010.0,1.1688461]
[1746781222630,0.7025273,103020.0,103010.0,1.26290049]
[1746781223132,0.7025273,103020.0,103010.0,1.07075439]
[1746781223339,0.8233976,103020.0,103010.0,1.06690049]
[1746781223535,0.7025273,103020.0,103010.0,1.06690049]
[1746781223735,0.7025273,103020.0,103010.0,1.23850049]
[1746781224740,0.69971794,103020.0,103010.0,1.23850049]
[1746781225144,0.5084,103020.0,103010.0,1.23850049]
[1746781225447,0.7025273,103020.0,103010.0,1.23850049]
[1746781226249,0.7025273,103020.0,103010.0,0.82560049]
[1746781226547,0.7025273,103020.0,103010.0,0.82260049]
[1746781227541,0.86492145,103020.0,103010.0,0.82260049]
[1746781227847,0.1941461,103010.0,103000.0,0.01456]
[1746781228143,0.1941461,103010.0,102990.0,0.4093457]
[1746781228144,0.7974703,103010.0,102990.0,0.4093457]
[1746781228350,0.8016353,103000.0,102990.0,0.603524]
[1746781228538,0.4866,103000.0,102990.0,0.8328455]
[1746781228846,0.32439415,103020.0,103010.0,0.1941461]
[1746781229047,0.64329415,103020.0,103010.0,1.0366164]
[1746781229247,0.67742145,103020.0,103010.0,0.9157461]
[1746781229446,0.48729415,103020.0,103010.0,1.18031934]
[1746781229643,0.68142145,103020.0,103010.0,1.18031934]
[1746781230147,0.68142145,103020.0,103010.0,1.30118964]
[1746781230342,0.84151301,103020.0,103010.0,1.34021934]
[1746781231335,0.84551301,103020.0,103010.0,1.34021934]
[1746781231541,0.65138571,103020.0,103010.0,1.34021934]
[1746781231741,0.84551301,103020.0,103010.0,1.34021934]
[1746781231941,0.6819273,103020.0,103010.0,1.34021934]
[1746781232336,0.1981273,103020.0,103010.0,1.75011934]
[1746781232546,0.004,103020.0,103010.0,1.67048964]
[1746781232847,0.12226689,103040.0,103030.0,0.1941085]
[1746781233050,0.31635649,103040.0,103030.0,1.0965788]
[1746781233547,0.64295649,103040.0,103030.0,1.37466289]
[1746781233751,0.64295649,103040.0,103030.0,1.49553319]
[1746781233955,0.64295649,103040.0,103030.0,1.01386289]
[1746781234344,0.64295649,103040.0,103030.0,0.98086289]
[1746781234645,0.64295649,103040.0,103030.0,0.45485439]
[1746781234851,0.5206896,103040.0,103030.0,0.29116289]
[1746781235052,0.5206896,103040.0,103030.0,0.09705439]
[1746781235247,0.5216896,103040.0,103030.0,0.29116289]
[1746781236146,0.5216896,103040.0,103030.0,0.41203319]
[1746781236367,0.5216896,103040.0,103030.0,0.94013319]
[1746781236543,0.3276,103040.0,103030.0,0.98546289]
[1746781236749,0.3276,103040.0,103030.0,1.27753319]
[1746781237049,0.32479248,103040.0,103030.0,1.15666289]
[1746781237250,0.32479248,103040.0,103030.0,1.27753319]
[1746781237641,0.001,103040.0,103030.0,1.20666289]
[1746781237846,0.001,103040.0,103030.0,1.29753319]
[1746781238042,0.001,103040.0,103030.0,1.47753319]
[1746781238248,0.00242,103050.0,103040.0,0.1940896]
[1746781238448,0.00242,103050.0,103040.0,1.1678302]
[1746781238855,0.00242,103050.0,103040.0,1.02314399]
[1746781239052,0.00242,103050.0,103040.0,1.14401429]
[1746781239349,0.00242,103050.0,103040.0,1.14101429]
[1746781239555,0.00742,103050.0,103040.0,1.14101429]
[1746781240455,0.00742,103050.0,103040.0,1.24101429]
[1746781241148,0.00742,103050.0,103040.0,1.23801429]
[1746781241352,0.00742,103050.0,103040.0,1.65391429]
[1746781242355,0.005,103050.0,103040.0,1.77478459]
[1746781242754,0.005,103050.0,103040.0,1.65391429]
[1746781243348,0.0021934,103050.0,103040.0,1.53304399]
[1746781243555,0.0021934,103050.0,103040.0,1.56752585]
[1746781245261,0.0021934,103050.0,103040.0,1.56452585]
[1746781245561,0.0046134,103050.0,103040.0,1.56452585]
[1746781247053,0.0046134,103050.0,103040.0,1.56152585]
[1746781247449,0.0046134,103050.0,103040.0,1.44065555]
[1746781247646,0.1759134,103050.0,103040.0,1.56152585]
[1746781249056,0.00180772,103050.0,103040.0,1.44065555]
[1746781249355,0.00180772,103050.0,103040.0,1.56152585]
[1746781250257,0.00180772,103050.0,103040.0,1.44065555]
[1746781250455,0.00180772,103050.0,103040.0,1.56152585]
[1746781250653,0.00180772,103050.0,103040.0,1.66152585]
[1746781251055,0.00180772,103050.0,103040.0,1.43765555]
[1746781251257,0.00180772,103050.0,103040.0,1.67939615]
[1746781252160,0.00180772,103050.0,103040.0,1.55852585]
[1746781252765,0.63816663,103070.0,103060.0,0.194052]
[1746781252956,0.63816663,103070.0,103060.0,0.6757223]
[1746781253156,0.63816663,103070.0,103060.0,0.69044461]
[1746781253465,0.63816563,103070.0,103060.0,0.94757075]
[1746781254163,0.5203331,103070.0,103060.0,0.94757075]
[1746781254766,0.5203331,103070.0,103060.0,0.94457075]
[1746781254967,0.5253331,103070.0,103060.0,0.94457075]
[1746781255566,0.5193331,103070.0,103060.0,0.94457075]
[1746781256166,0.6856331,103070.0,103060.0,0.94457075]
[1746781257260,0.6856331,103070.0,103060.0,0.94157075]
[1746781257462,0.4916,103070.0,103060.0,0.94157075]
[1746781257666,0.4916,103070.0,103060.0,1.30237075]
[1746781258150,0.6856331,103070.0,103060.0,1.30237075]
[1746781258753,0.6856331,103070.0,103060.0,1.18150045]
[1746781258955,0.6856331,103070.0,103060.0,1.30237075]
[1746781259165,0.68282926,103070.0,103060.0,1.30237075]
[1746781261062,0.68282926,103070.0,103060.0,1.29937075]
[1746781261266,0.6799247,103070.0,103060.0,1.29937075]
[1746781261467,0.6799247,103070.0,103060.0,1.17850045]
[1746781262069,0.6799247,103070.0,103060.0,1.29937075]
[1746781262555,0.6799247,103070.0,103060.0,0.99344845]
[1746781262757,0.6799247,103070.0,103060.0,1.18750045]
[1746781262959,0.6799247,103070.0,103060.0,1.30837075]
[1746781263158,0.67712177,103070.0,103060.0,1.30837075]
[1746781263868,0.67712177,103070.0,103060.0,1.18750045]
[1746781264167,0.67712177,103070.0,103060.0,1.30837075]
[1746781264669,0.67712177,103070.0,103060.0,1.46707075]
[1746781265269,0.67431976,103070.0,103060.0,1.46707075]
[1746781267161,0.67151867,103070.0,103060.0,1.46707075]
[1746781267567,0.67151867,103070.0,103060.0,0.47254845]
[1746781267768,0.88941697,103070.0,103060.0,0.01472231]
[1746781268064,0.194052,103060.0,103050.0,0.03396]
[1746781268265,0.524452,103060.0,103050.0,0.03396]
[1746781268462,0.1940708,103050.0,103040.0,0.8796813]
[1746781268667,0.5125708,103050.0,103040.0,0.8311599]
[1746781268870,0.5364143,103050.0,103030.0,0.79125]
[1746781269067,0.99145972,103040.0,103030.0,0.04851]
[1746781269258,0.1941085,103030.0,103020.0,0.3608]
[1746781269461,0.1941273,103020.0,103010.0,0.00145634]
[1746781269661,0.7116273,103020.0,103010.0,0.12232664]
[1746781269870,0.8734273,103020.0,103010.0,0.09850602]
[1746781270266,1.1631976,103020.0,103010.0,0.11276431]
[1746781270670,1.2602696,103020.0,103010.0,0.11276431]
[1746781270970,1.62834064,103020.0,103010.0,0.00145634]
[1746781271166,0.1941461,103010.0,103000.0,0.03397]
[1746781271364,0.194165,103000.0,102990.0,0.2912664]
[1746781271564,0.350665,103000.0,102990.0,0.2912664]
[1746781271760,0.516065,103000.0,102990.0,0.38833964]
[1746781271965,0.516065,103000.0,102990.0,0.50920994]
[1746781272168,0.3608,103010.0,103000.0,0.194165]
[1746781272367,0.3219,103030.0,103020.0,0.1941273]
[1746781272569,0.3219,103030.0,103020.0,1.4841679]
[1746781272870,0.1565,103030.0,103020.0,1.64125999]
[1746781273069,0.1565,103040.0,103030.0,0.2911558]
[1746781273272,0.1940896,103040.0,103030.0,1.0609882]
[1746781273477,0.1940896,103040.0,103030.0,0.3708]
[1746781273668,0.3505896,103040.0,103030.0,0.66197231]
[1746781273867,0.3505896,103040.0,103030.0,0.46786381]
[1746781274068,0.3505896,103040.0,103030.0,0.65197231]
[1746781274472,0.3505896,103040.0,103030.0,0.45786381]
[1746781274667,0.1863143,103050.0,103030.0,0.86327868]
[1746781274870,0.1629,103070.0,103060.0,0.194052]
[1746781275072,0.3570331,103070.0,103060.0,1.2038223]
[1746781275265,0.35423566,103070.0,103060.0,1.249752]
[1746781275471,0.35423566,103070.0,103060.0,1.46764844]
[1746781275672,0.35423566,103070.0,103060.0,0.74604844]
[1746781275871,0.35423566,103070.0,103060.0,1.10684844]
[1746781276072,0.32990256,103070.0,103060.0,1.10684844]
[1746781277168,0.32990256,103070.0,103060.0,0.98597814]
[1746781277370,0.33090256,103070.0,103060.0,1.10684844]
[1746781277571,0.33090256,103070.0,103060.0,0.98597814]
[1746781277767,0.33090256,103070.0,103060.0,1.10684844]
[1746781277968,0.33010604,103070.0,103060.0,1.10684844]
[1746781278673,0.33010604,103070.0,103060.0,1.00044189]
[1746781278865,0.52413914,103070.0,103060.0,1.00044189]
[1746781279067,0.52413914,103070.0,103060.0,0.47228989]
[1746781279275,1.00580944,103070.0,103060.0,0.11148989]
[1746781279474,0.64500944,103070.0,103060.0,0.30554189]
[1746781279670,0.64500944,103070.0,103060.0,0.11148989]
[1746781280066,1.10004183,103070.0,103060.0,0.11148989]
[1746781280273,0.194052,103060.0,103050.0,0.5548708]
[1746781280477,0.357352,103060.0,103050.0,0.5548708]
[1746781280679,0.357352,103060.0,103050.0,0.65189694]
[1746781281679,0.1633,103060.0,103050.0,0.77276724]
[1746781281866,0.36742147,103080.0,103070.0,0.1940331]
[1746781282068,0.52692147,103080.0,103070.0,0.1940331]
[1746781282268,0.47561947,103080.0,103070.0,0.1940331]
[1746781282480,0.23308917,103080.0,103070.0,0.41192013]
[1746781282678,0.23308917,103080.0,103070.0,0.61504983]
[1746781282883,0.42710347,103080.0,103070.0,0.61504983]
[1746781283072,0.47874606,103080.0,103070.0,0.61504983]
[1746781283381,0.64234606,103080.0,103070.0,0.97584983]
[1746781283678,0.44833176,103080.0,103070.0,0.97584983]
[1746781283873,0.44833176,103080.0,103070.0,1.09672013]
[1746781284069,0.63955227,103080.0,103070.0,1.09672013]
[1746781284379,0.63255227,103080.0,103070.0,1.09672013]
[1746781284781,0.63255227,103080.0,103070.0,0.97584983]
[1746781285981,0.62975939,103080.0,103070.0,0.97584983]
[1746781286382,0.50815293,103080.0,103070.0,0.61504983]
[1746781286574,0.50815293,103080.0,103070.0,0.97584983]
[1746781286770,0.50815293,103080.0,103070.0,0.29104983]
[1746781287178,0.98982323,103080.0,103070.0,0.29104983]
[1746781287683,0.86895293,103080.0,103070.0,0.29104983]
[1746781287879,0.98703126,103080.0,103070.0,0.09701673]
[1746781288177,0.98703126,103080.0,103060.0,0.36952734]
[1746781288178,0.1940331,103070.0,103060.0,0.24257934]
[1746781288385,0.4857034,103070.0,103060.0,0.20862934]
[1746781288681,0.3648331,103070.0,103060.0,0.30564607]
[1746781288877,0.3648331,103070.0,103060.0,0.62664607]
[1746781289176,0.4857034,103070.0,103060.0,0.11159407]
[1746781289382,0.4867034,103070.0,103060.0,0.11159407]
[1746781289974,0.48591234,103070.0,103060.0,0.01457734]
[1746781290176,0.194052,103060.0,103050.0,0.9098171]
[1746781290376,0.353152,103060.0,103050.0,0.71576]
[1746781290680,0.353152,103060.0,103050.0,0.97289694]
[1746781290879,0.511552,103060.0,103050.0,0.97289694]
[1746781291481,0.511552,103060.0,103050.0,0.61209694]
[1746781291686,0.511552,103060.0,103050.0,0.62683984]
[1746781291985,0.50876185,103060.0,103050.0,0.62683984]
[1746781292386,0.50876185,103060.0,103050.0,0.98763984]
[1746781292888,0.50876185,103060.0,103050.0,0.79356904]
[1746781293480,0.62963215,103060.0,103050.0,0.47256904]
[1746781293781,0.1940708,103050.0,103040.0,0.03396]
[1746781294089,0.1940896,103040.0,103030.0,0.6118558]
[1746781294278,0.55210036,103040.0,103030.0,0.6118558]
[1746781294477,0.89250036,103040.0,103030.0,0.66036486]
[1746781294686,0.89250036,103040.0,103030.0,0.78123516]
[1746781294881,0.89250036,103040.0,103030.0,0.79548545]
[1746781295082,0.2466033,103050.0,103040.0,0.1940896]
[1746781295281,0.1980708,103050.0,103040.0,0.9964599]
[1746781295586,0.3680708,103050.0,103040.0,0.9964599]
[1746781295780,0.3680708,103050.0,103040.0,1.09350488]
[1746781295975,0.3680708,103050.0,103040.0,0.97263458]
[1746781296181,0.3680708,103050.0,103040.0,1.09350488]
[1746781296381,0.3710708,103050.0,103040.0,0.97263458]
[1746781296591,0.3710708,103050.0,103040.0,1.09050488]
[1746781296887,0.36516526,103050.0,103040.0,1.09050488]
[1746781297783,0.3640708,103050.0,103040.0,0.96963458]
[1746781297988,0.5307708,103050.0,103040.0,0.96963458]
[1746781298187,0.5307708,103050.0,103040.0,1.09050488]
[1746781298684,0.52798246,103050.0,103040.0,1.09150488]
[1746781298884,0.52798246,103050.0,103040.0,0.97063458]
[1746781299187,0.52798246,103050.0,103040.0,1.09150488]
[1746781299380,0.52798246,103050.0,103040.0,0.97063458]
[1746781299577,0.52798246,103050.0,103040.0,1.09150488]
[1746781299782,0.36128246,103050.0,103040.0,1.09450488]
[1746781299982,0.19128246,103050.0,103040.0,1.09450488]
[1746781300285,0.77499109,103060.0,103050.0,0.1940708]
[1746781300486,0.43538079,103060.0,103050.0,1.0103411]
[1746781300784,0.09687426,103060.0,103050.0,1.1482114]
[1746781300985,0.09687426,103060.0,103050.0,1.24525638]
[1746781301177,0.09687426,103060.0,103050.0,1.00351578]
[1746781301381,0.09687426,103060.0,103050.0,1.12438608]
[1746781301584,0.5534668,103070.0,103060.0,0.194052]
[1746781301787,0.5534668,103070.0,103060.0,0.9954223]
[1746781302081,0.5049573,103070.0,103060.0,0.9954223]
[1746781302277,0.2624143,103070.0,103060.0,1.10245786]
[1746781302490,0.0973143,103070.0,103060.0,1.10245786]
[1746781302687,0.09452687,103070.0,103060.0,1.27405786]
[1746781302881,0.09452687,103070.0,103060.0,1.27709116]
[1746781303190,0.09752687,103070.0,103060.0,1.27709116]
[1746781304187,0.10052687,103070.0,103060.0,1.27709116]
[1746781304585,0.10052687,103070.0,103060.0,1.27409116]
[1746781304785,0.09761936,103070.0,103060.0,1.27409116]
[1746781305292,0.07920127,103070.0,103060.0,1.30409116]
[1746781305483,0.07920127,103070.0,103060.0,1.71999116]
[1746781305880,0.07920127,103070.0,103060.0,2.11999116]
[1746781306088,0.07920127,103070.0,103060.0,2.06999116]
[1746781306688,0.12127636,103090.0,103080.0,0.1940143]
[1746781306993,0.12127636,103090.0,103080.0,0.67871764]
[1746781307181,0.12127636,103090.0,103080.0,0.84741764]
[1746781307380,0.12127636,103090.0,103080.0,1.26034378]
[1746781307592,0.12127636,103090.0,103080.0,1.62114378]
[1746781307887,0.12527636,103090.0,103080.0,1.62114378]
[1746781308095,0.31927186,103090.0,103080.0,1.62114378]
[1746781308391,0.32027186,103090.0,103080.0,1.62114351]
[1746781308595,0.36037013,103090.0,103080.0,1.62114351]
[1746781308795,0.35746163,103090.0,103080.0,1.61814351]
[1746781309287,0.35746163,103090.0,103080.0,1.49727321]
[1746781309791,0.50936163,103090.0,103080.0,1.49727321]
[1746781309990,0.67526163,103090.0,103080.0,1.49727321]
[1746781310184,0.67526163,103090.0,103080.0,1.49727348]
[1746781310385,0.79613193,103090.0,103080.0,1.13755918]